Cogmind - Beta 17 @@@ ROGUE MODE // 2026.08.09 @ 21:59:43 Player: Marc Result: Self-destructed Performance ------------- Evolutions (2) 1000 Regions Visited (3) 600 Robots Destroyed (1) 5 Value Destroyed (57) 57 Prototype IDs (1) 20 Alien Tech Used (0) 0 Bonus (0) 0 TOTAL SCORE: 1682 Bonus ------- None Cogmind --------- Core Integrity 407/550 Matter 214/300 Energy 100/100 System Corruption 0% Temperature Cool (0) Movement Core (50) Location -8/Materials Parts ------- > --- POWER (1) -------- (None) > --- PROPULSION (3) --- (None) > --- UTILITY (5) ------ Advanced Visual Processing Unit Melee Analysis Suite > --- WEAPON (2) ------- (None) > --- INVENTORY (5) ---- Cryofiber Web Peak State ------------ > --- POWER ------------ (None) > --- PROPULSION ------- Airjet Flight Unit > --- UTILITY ---------- Advanced Visual Processing Unit Terrain Scanner Melee Analysis Suite ECM Suite > --- WEAPON ----------- Datajack > --- INVENTORY -------- Cryofiber Web [Rating: 13] Favorites ----------- Power Light Ion Engine Engine Light Ion Engine Propulsion Aluminum Leg Leg Aluminum Leg Hover Unit Airjet Flight Unit Flight Unit Utility ECM Suite Device ECM Suite Processor Advanced Visual Processing Unit Weapon Datajack Energy Gun Medium Laser Special Melee Weapon Datajack Build | -11 -10 -9 -8 ------- Run | Yrd Mat Mat Mat Slots Evolved 4 | . . 2 2 Power . | . . . . Propulsion 1 | . . . 1 Utility 3 | . . 2 1 Weapon . | . . . . Parts Attached 14 | 4 2 3 5 Power 2 | 1 . . 1 Engine 2 | 1 . . 1 Core . | . . . . Reactor . | . . . . Propulsion 5 | 2 . 2 1 Treads . | . . . . Leg 2 | 2 . . . Wheel . | . . . . Hover 1 | . . . 1 Flight 2 | . . 2 . Utility 5 | . 2 . 3 Device 3 | . 2 . 1 Storage . | . . . . Processor 2 | . . . 2 Hackware . | . . . . Protection . | . . . . Artifact . | . . . . Weapon 2 | 1 . 1 . Energy Gun 1 | 1 . . . Energy Cannon . | . . . . Ballistic Gun . | . . . . Ballistic Cannon . | . . . . Launcher . | . . . . Special Weapon . | . . . . Impact Weapon . | . . . . Slashing Weapon . | . . . . Piercing Weapon . | . . . . Special Melee Weapon 1 | . . 1 . Unidentified Prototypes 1 | . . 1 . Parts Lost 8 | . 3 . 5 Power 1 | . 1 . . Propulsion 3 | . 1 . 2 Utility 2 | . . . 2 Weapon 2 | . 1 . 1 Highest Loss Streak 5 | . 3 . 5 To Critical Strikes . | . . . . Average Backups . | . . . 1 Power . | . . . . Propulsion . | . . . . Utility . | . . . . Weapon . | . . . . Tool/Special . | . . . . Unused Backups . | . . . . Power . | . . . . Propulsion . | . . . . Utility . | . . . . Weapon . | . . . . Tool/Special . | . . . . Average Slot Usage (%) 58 | . 76 44 46 Engine 5 | . 14 . . Leg 12 | . 26 7 . Hover 1 | . . . 4 Flight 3 | . . 3 7 Device 20 | . 23 22 14 Processor 4 | . . . 14 Energy Gun 4 | . 11 . . Special Melee Weapon 4 | . . 11 5 Peak Build Rating 13 | 4 6 7 13 Average Rating 6 | 3 5 4 9 On Entrance 3 | . 4 3 5 Avg Prop Armor Cover (%) 8 | . . . 8 Naked Turns . | . . . . Heaviest Build 8 | 5 8 4 4 Greatest Support 20 | 20 20 10 8 Greatest Overweight (x) . | . . . . Average Overweight (x) . | . . . . Largest Inventory Capacity 5 | 5 5 5 5 Average Capacity 5 | 5 5 5 5 Most Carried 4 | 3 1 4 3 Average Carried . | . . . . Final Capacity 5 | 5 5 5 5 Final Carried 4 | . 1 4 1 Class Distribution -------------------- 100% | Mutant Dominant Class ---------------- Mutant | -10/Materials Mutant | -9/Materials Mutant | -8/Materials Resources | -11 -10 -9 -8 ----------- Run | Yrd Mat Mat Mat Matter Collected 214 | 214 . . . Remotely . | . . . . Salvage Created 27 | . 27 . . Parts 3 | . 3 . . Haulers Intercepted . | . . . . Recyclers Shooed . | . . . . Parts Field Recycled . | . . . . Retrieved Matter . | . . . . Parts Self-Destructed . | . . . . Prevented . | . . . . Parts Restored . | . . . . Kills | -11 -10 -9 -8 ------- Run | Yrd Mat Mat Mat Combat Hostiles Destroyed 1 | . 1 . . AOE 1 | . 1 . . Classes Destroyed 1 | . 1 . . Grunt 1 | . 1 . . Best Kill Streak 1 | . 1 . . Combat Bots Only 1 | . 1 . . Max Kills in Single Turn 1 | . 1 . . Gunslinging . | . . . . Exploded 1 | . 1 . . Melee . | . . . . Uniques/NPCs Destroyed . | . . . . Combat | -11 -10 -9 -8 -------- Run | Yrd Mat Mat Mat Hostile Shots Fired 99 | . 23 41 35 Missed 53 | . 8 27 18 Hits 46 | . 15 14 17 Projectile 46 | . 15 14 17 Damage Taken 733 | . 304 153 276 Core 312 | . 47 122 143 Absorbed by Shields . | . . . . Core Remaining (%) 83 | 100 81 69 . Volleys Fired 4 | . 4 . . Largest 1 | . 1 . . Hottest 50 | . 50 . . Shots Fired 4 | . 4 . . Gun 4 | . 4 . . Cannon . | . . . . Launcher . | . . . . Special . | . . . . Kinetic . | . . . . Thermal 4 | . 4 . . Explosive . | . . . . Electromagnetic . | . . . . Robot Hit Streak 1 | . 1 . . Robot Miss Streak 2 | . 2 . . Penetration Max . | . . . . Secondary Targets . | . . . . Shots Hit Robots 1 | . 1 . . Core Hits 1 | . 1 . . Critical Kills . | . . . . Critical Parts Destroyed . | . . . . Critical Strikes . | . . . . Melee Attacks . | . . . . Impact . | . . . . Slashing . | . . . . Piercing . | . . . . Sneak Attacks . | . . . . Combat Hostiles . | . . . . Follow-up Attacks . | . . . . Damage Inflicted 124 | . 124 . . Guns 12 | . 12 . . Cannons . | . . . . Explosions 112 | . 112 . . Melee . | . . . . Ramming . | . . . . Kinetic . | . . . . Thermal 12 | . 12 . . Explosive 112 | . 112 . . Electromagnetic . | . . . . Impact . | . . . . Slashing . | . . . . Piercing . | . . . . Highest Corruption 2 | . . 2 . Average Corruption 2 | . . 2 . Corruption Purged . | . . . . Corruption Blocked . | . . . . Effects 1 | . . 1 . Message Errors 1 | . . 1 . Overload Shots . | . . . . Overflow Damage 21 | . 21 . . Projectiles . | . . . . Explosions 21 | . 21 . . Melee . | . . . . Knockbacks . | . . . . Impact . | . . . . Kinetic . | . . . . Secondary . | . . . . Self-Inflicted Damage 114 | . 114 . . Shots 1 | . 1 . . Rammed . | . . . . Targets Rammed . | . . . . Kicked . | . . . . Crushed . | . . . . Highest Temperature 39 | . 39 . . Average Temperature 17 | . 17 . . Received Heat Transfer 267 | . 102 30 135 Siege Activations . | . . . . Martial Activations . | . . . . Shielding Activations . | . . . . Robots Disrupted . | . . . . Combat Hostiles . | . . . . Robots Corrupted . | . . . . Combat Hostiles . | . . . . Parts Fried . | . . . . Impact Corruptions . | . . . . Robots Melted . | . . . . Combat Hostiles . | . . . . Parts Melted . | . . . . Heat Transferred 37 | . 37 . . Parts Sabotaged . | . . . . Parts Stolen . | . . . . Parts Stripped . | . . . . Power Chain Reactions . | . . . . Alert | -11 -10 -9 -8 ------- Run | Yrd Mat Mat Mat Maximum Alert Level . | . . . . Low Security (%) 100 | 100 100 100 100 Level 1 . | . . . . Level 2 . | . . . . Level 3 . | . . . . Level 4 . | . . . . Level 5 . | . . . . High Security . | . . . . Max Security . | . . . . Peak Influence 67 | . 67 11 30 Initial 11 | . . 11 . Average 5 | . 10 3 2 Influence Increases 121 | . 77 2 42 Destroy 0b10 Robot/C 20 | . 20 . . Destroy Leader 10 | . 10 . . Successful Hack 14 | . . 2 12 Disable Machine 15 | . 15 . . Destroy Structure 32 | . 32 . . Lose Combat Pursuer 30 | . . . 30 Influence Decreases 91 | . 50 29 12 Entered New Map 16 | . . 16 . Time Decay 45 | . 20 13 12 Lost Part 30 | . 30 . . Squads Dispatched 2 | . 1 . 1 Investigation . | . . . . Extermination . | . . . . Reinforcement 2 | . 1 . 1 Assault . | . . . . Garrison . | . . . . Intercept . | . . . . Searches Triggered . | . . . . Construction Impeded . | . . . . Haulers Reinforced . | . . . . Active Scanning Responses . | . . . . Cargo Convoy Interrupts . | . . . . Stealth | -11 -10 -9 -8 --------- Run | Yrd Mat Mat Mat Distress Signals 1 | . . . 1 Communications Jammed . | . . . . Distress Signals . | . . . . Times Spotted 35 | . 7 15 13 Peak Tracking Total 15 | . 3 15 10 Tactical Retreats 4 | . 3 . 1 ECM-based Alert Blocks 4 | . 4 . . Traps | -11 -10 -9 -8 ------- Run | Yrd Mat Mat Mat Traps Triggered . | . . . . Indirectly . | . . . . Trap Hack Attempts . | . . . . Triggered . | . . . . Disarmed . | . . . . Reprogrammed . | . . . . Reused . | . . . . Traps Extracted . | . . . . Installed . | . . . . Triggered . | . . . . Machines | -11 -10 -9 -8 ---------- Run | Yrd Mat Mat Mat Machines Disabled 1 | . 1 . . Max in Single Turn 1 | . 1 . . Machines Repaired . | . . . . Machines Dismantled . | . . . . Machines Sabotaged . | . . . . Overloaded Fab Kills . | . . . . Hacking | -11 -10 -9 -8 --------- Run | Yrd Mat Mat Mat Machines Accessed 3 | . 1 1 1 Terminals 2 | . 1 . 1 Fabricators . | . . . . Repair Stations . | . . . . Recycling Units . | . . . . Scanalyzers 1 | . . 1 . Garrison Access . | . . . . Total Hacks 8 | . 3 3 2 Successful 6 | . 2 3 1 Failed 2 | . 1 . 1 Catastrophic . | . . . . Database Lockouts . | . . . . Manual . | . . . . Terminals 5 | . 3 . 2 Fabricators . | . . . . Repair Stations . | . . . . Recycling Units . | . . . . Scanalyzers 3 | . . 3 . Garrison Access . | . . . . Terminal Hacks 3 | . 2 . 1 Record 2 | . 1 . 1 Zone Layout 1 | . 1 . . Fabricator Hacks . | . . . . Repair Station Hacks . | . . . . Recycling Unit Hacks . | . . . . Scanalyzer 3 | . . 3 . Insert Component 1 | . . 1 . Analyze 1 | . . 1 . Retrieve Study 1 | . . 1 . Garrison Access Hacks . | . . . . Unauthorized Hacks . | . . . . Terminals . | . . . . Fabricators . | . . . . Repair Stations . | . . . . Recycling Units . | . . . . Scanalyzers . | . . . . Garrison Access . | . . . . Data Cores Recovered . | . . . . Used . | . . . . Hacking Detections 3 | . 1 1 1 Full Trace Events . | . . . . Feedback Events . | . . . . Feedback Blocked . | . . . . Robot Schematics Acquired . | . . . . Robots Built . | . . . . Authchips . | . . . . Time . | . . . . Total Robot Build Rating . | . . . . Part Schematics Acquired 1 | . . 1 . Parts Built . | . . . . Authchips . | . . . . Time . | . . . . Total Part Build Rating . | . . . . Part Studies Acquired 1 | . . 1 . Parts Repaired . | . . . . Time . | . . . . Parts Recycled . | . . . . Recycled Matter . | . . . . Retrieved Matter . | . . . . Retrieved Components . | . . . . Parts Scanalyzed 1 | . . 1 . Part Schematics Acquired 1 | . . 1 . Parts Damaged . | . . . . Bothacking | -11 -10 -9 -8 ------------ Run | Yrd Mat Mat Mat Used RIF Installer . | . . . . Robots Hacked . | . . . . Non-combat . | . . . . Combat . | . . . . Robot Hacks Applied . | . . . . Relay Couplers Released . | . . . . Fabnet Peak Effective % . | . . . . Robots Rewired . | . . . . Allies Hacked . | . . . . Hacks Repelled . | . . . . Allies | -11 -10 -9 -8 -------- Run | Yrd Mat Mat Mat Total Allies . | . . . . Largest Group . | . . . . Highest-Rated Group . | . . . . Highest-Rated Ally . | . . . . Total Orders . | . . . . Ally Attacks . | . . . . Total Damage . | . . . . Kills . | . . . . Allies Corrupted . | . . . . Allies Melted . | . . . . Intel | -11 -10 -9 -8 ------- Run | Yrd Mat Mat Mat Active Infowar (turns) 376 | . 159 82 135 Optics 131 | . . . 131 Terrain 296 | . 130 82 84 ECM 177 | . 159 18 . Robot Analysis Total . | . . . . Derelict Logs Recovered . | . . . . Drone Launches . | . . . . Drone Recoveries . | . . . . Exploration | -11 -10 -9 -8 ------------- Run | Yrd Mat Mat Mat Turns Passed 423 | 38 168 82 135 Spaces Moved 513 | 30 128 114 241 Core 36 | 8 . . 28 Treads . | . . . . Legs 185 | 22 128 35 . Wheels . | . . . . Hover 118 | . . . 118 Flight 174 | . . 79 95 Fastest Speed 40 | 50 120 40 40 Average Speed 74 | 101 120 64 50 Slowest Speed 120 | 120 120 120 60 Overloaded Moves . | . . . . Propulsion Burnouts . | . . . . Robots Hopped . | . . . . Potential Cave-ins . | . . . . Cave-ins Triggered . | . . . . Exploration Rate (%) 19 | 3 33 24 17 Regions Visited 3 Branch Regions . Pre-discovered Areas . | . . . . Known Exits Taken . | . . . . Unknown Exits Taken 3 | 1 1 1 . Scrap Searched . | . . . . Spaces Dug . | . . . . Terrain Destroyed 47 | . 47 . . Melee . | . . . . Projectile . | . . . . AOE 47 | . 47 . . Terrain Rammed . | . . . . Walls Destroyed . | . . . . Machines Disabled . | . . . . Actions | -11 -10 -9 -8 --------- Run | Yrd Mat Mat Mat Total 552 | 37 138 122 255 Wait 3 | . 2 . 1 Move 510 | 29 127 113 241 Hop . | . . . . Pick Up 14 | 4 3 4 3 Fast Attach . | . . . . Attach 14 | 4 2 3 5 Detach 4 | . . 2 2 Swap . | . . . . Drop 3 | . . . 3 Fire 4 | . 4 . . Melee . | . . . . Ram . | . . . . Kick . | . . . . Crush . | . . . . Escape Stasis . | . . . . Rewire . | . . . . Trap . | . . . . Miscellaneous . | . . . . Route ------- -11/Scrapyard -10/Materials -9/Materials (discovered 2 exits: *Mat / [*Sto]) -8/Materials History --------- Turn | Location | Event 19 | -11/Scrapyard | Discovered new exit (range 15) 39 | -11/Scrapyard | Entered Materials 82 | -10/Materials | Discovered new exit (range 17) 207 | -10/Materials | Entered another Materials area 207 | -9/Materials | Evolved 2 slots: Utility x2 238 | -9/Materials | Lost 3 parts (1p1n1w) 257 | -9/Materials | Discovered new exit (range 10) 288 | -9/Materials | Discovered new exit (range 4) 289 | -9/Materials | Entered another Materials area 289 | -8/Materials | Evolved 2 slots: Propulsion x1, Utility x1 336 | -8/Materials | Build established: Mutant 424 | -8/Materials | Self-destructed Last Messages --------------- greater damage potential than other ballistic weapons of their class, but at the same time suffer from inconsistent application of force at the point of impact, leading to less effective results under some conditions. Nonetheless, quite a few Derelicts rely on it as a primary or secondary weapon. 00347_ O-16 Technician: "IFF HANDSHAKE FAILED. SECURING TERMINAL." 00371_ W-25 Informer sends out distress signal. 00372_ Datajack+ destroyed. 00373_ Terrain Scanner destroyed. 00385_ ALERT: Hostiles spotted, dispatching reinforcements to Terminal M006. 00388_ Airjet destroyed. 00391_ K-01 Serf collects debris. 00409_ Flight Unit destroyed. 00412_ T-07 Excavator is excavating. 00412_ ECM Suite destroyed. 00416_ T-07 Excavator is excavating. Map ----- +----------------------------------------------------+ | | | | | ??????????????????????????????????? | | ??????????????????????????????????? | | ??????????????????????????????????? | | ??????????????????????????????????? | | ??????????????????????????????????? | | ??####????????????????????????????? | | ??# #????????????????????????????? | | ??# #????????????????????????????? | | ??# #????????????????????????????? | | ??# #????????????????????????????? | | ??# #????????????????????????????? | | ??# ###???????????###########????? | | ??# # #???????????#! #????? | | ??# #???????????# ] #????? | | ??# ###???????????# #????? | | ?## ##????????????# """ ] #??#?? | | ?# #????????????# """ ! #????? | | ?# #????????????# """ #????? | | ?# #????????????# """ "Y" #????? | | ?# #????????????# """ #????? | | ###Y#######?????#??#####+#####????? | | # #?????#????# #??????? | | # ############ "" #??????? | | # @gg gg gg T #??????? | | # Y ############ #??????? | | # #??????????# #??????? | | # !#??#???????## ##??????? | | # !! #?########### #???????? | | # !! #?# # #???????? | | #### ######?# ! + #???????? | | ???###??????# # #???????? | | ????????????# # #???????? | | ????????????########### #???????? | | ???????????????# ##?#????? | | ???????????????# #???????? | | ???????????????# """ ##???"??? | | ???????????????# """ ##??????? | | ???????????????# """ #???????? | | ????????????#??# #?#?????? | | ???????????????# ######### | | ???????????????# """ | | ???????????????# """ | | ???????????????# """ | | ???????????????# ######### | | ?????########### # | | ?????# # """ # | | ?????# # """ # | | ?#???# """ """ # """ # | +----------------------------------------------------+ Best States ------------- Heat Dissipation 31 Energy Generation 10 Energy Capacity 125 Matter Stores 274 Matter Capacity 300 Sight Range 20 Terrain Scan Range 14 Terrain Scan Density 10 ECM Strength 1 Evasion (%) 62 Melee Accuracy 5 Item Schematics ----------------- Flight Unit | -9/Materials | Scanalyzed Robot Schematics ------------------ None Fabricated ------------ Nothing Repaired ---------- Nothing Studied --------- Datajack | -9/Materials | Hacked Alien Tech Used ----------------- None Achievements -------------- None Challenges ------------ None Game ------ Seed SeismicShockSystem Manual? 0 Play Time 00:11:20 Cumulative 10.1 hours Start 2026.08.09 @ 21:51:43 End 2026.08.09 @ 21:59:43 Sessions 1 Manual Loads 0 Difficulty Rogue Special Mode None Game No. 27 Rogue 20 Adventurer 7 Explorer 0 Win Type - Total 0 Types 0/0/0/0/0/0/0/0/0/0 Lore% 9 Gallery% 14 Achievement% 11 Wizard Run 0 Options --------- Layout 1 ASCII 0 Keyboard 0 Movement Mouse Keybinds 0 Fullscreen 1 Font 24/Smallcaps Map View 50x35 Zoom Use 0% Tactical HUD 1 Map Filters NONE Filters NONE Steam 1 RUN: 462596ab-7333-41f6-a8d5-d79fbd457e7c